bitfinex-derivatives/quotes_SOLF0:USTF0_20250428
["timestamp","ask_amount","ask_price","bid_price","bid_amount"]
[1745871573749,16.12361165,147.43,147.38,35.30241165]
[1745871573953,16.12361165,147.43,147.4,6.7823]
[1745871574254,16.12361165,147.43,147.38,35.30241165]
[1745871574658,9.34241165,147.43,147.38,35.30241165]
[1745871575453,9.34241165,147.43,147.39,9.34241165]
[1745871575758,9.34241165,147.46,147.41,9.34241165]
[1745871575957,9.34241165,147.46,147.42,9.34241165]
[1745871576161,16.12241165,147.46,147.43,6.7809]
[1745871577159,9.34241165,147.45,147.43,6.7809]
[1745871577455,9.34241165,147.45,147.42,6.7814]
[1745871578758,9.34241165,147.44,147.42,6.7814]
[1745871579456,9.34241165,147.44,147.43,6.7811]
[1745871579658,9.34241165,147.45,147.43,6.7811]
[1745871580061,9.34241165,147.44,147.38,25.96]
[1745871580258,9.34241165,147.4,147.36,4.0091]
[1745871580651,9.34241165,147.4,147.38,6.7833]
[1745871581056,9.34241165,147.39,147.38,6.7833]
[1745871581257,9.34241165,147.4,147.38,6.7833]
[1745871582265,9.34241165,147.4,147.39,6.783]
[1745871583561,6.7818,147.42,147.39,6.783]
[1745871583562,21.38482193,147.42,147.39,6.783]
[1745871584166,6.7821,147.41,147.38,6.7832]
[1745871585960,21.38482193,147.42,147.38,6.7832]
[1745871586764,6.7821,147.41,147.38,6.7832]
[1745871589063,21.38482193,147.42,147.38,6.7832]
[1745871589265,21.38482193,147.42,147.39,6.7829]
[1745871593169,6.7823,147.41,147.38,6.7832]
[1745871593467,6.7823,147.41,147.36,4.0091]
[1745871595371,21.38482193,147.42,147.36,4.0091]
[1745871595671,14.60302193,147.42,147.36,4.0091]
[1745871595871,14.60302193,147.42,147.35,25.94]
[1745871596372,6.7823,147.41,147.38,6.7834]
[1745871599873,21.38472193,147.42,147.39,6.783]
[1745871600175,14.60302193,147.42,147.35,25.94]
[1745871600377,21.38502193,147.42,147.38,6.7831]
[1745871600575,14.60302193,147.42,147.38,6.7831]
[1745871600976,14.60302193,147.42,147.37,6.7836]
[1745871601573,6.7823,147.41,147.35,25.94]
[1745871601775,6.7823,147.41,147.38,6.7834]
[1745871605175,6.7823,147.41,147.39,6.7829]
[1745871605478,9.34574905,147.4,147.39,6.7829]
[1745871606975,9.34574905,147.4,147.38,6.7832]
[1745871609280,16.12824905,147.4,147.38,6.7832]
[1745871609579,1.9858,147.43,147.39,6.783]
[1745871609878,42.08674905,147.44,147.4,9.34574905]
[1745871610080,42.08674905,147.44,147.41,6.7818]
[1745871611577,6.7812,147.43,147.41,6.7818]
[1745871611779,9.34574905,147.43,147.41,6.7818]
[1745871613980,9.34574905,147.43,147.42,6.7816]
[1745871614389,35.30574905,147.44,147.4,9.34574905]
[1745871614586,25.96,147.44,147.43,6.7811]
[1745871614786,9.34574905,147.45,147.43,6.7811]
[1745871615287,16.12514905,147.47,147.44,6.7807]
[1745871615786,16.12514905,147.47,147.43,6.7808]
[1745871616086,9.34574905,147.46,147.43,6.7808]
[1745871616390,9.34574905,147.46,147.44,6.7806]
[1745871616888,16.12554905,147.46,147.44,6.7806]
[1745871617089,16.12554905,147.46,147.43,6.7809]
[1745871617385,9.34574905,147.45,147.43,6.7809]
[1745871619388,9.34574905,147.44,147.39,25.92]
[1745871619589,9.34574905,147.42,147.39,25.92]
[1745871619987,9.34574905,147.42,147.4,6.7823]
[1745871620189,16.12724905,147.43,147.4,6.7823]
[1745871620491,9.34574905,147.43,147.4,6.7823]
[1745871621490,6.7812,147.43,147.4,6.7823]
[1745871623591,14.59758394,147.45,147.41,6.782]
[1745871623787,18.69518394,147.47,147.39,25.92]
[1745871624288,6.7803,147.45,147.41,6.7819]
[1745871624589,6.7803,147.45,147.39,25.92]
[1745871624921,6.78,147.46,147.42,6.7812]
[1745871625089,18.69518394,147.47,147.39,25.92]
[1745871625994,6.7803,147.45,147.42,6.7814]
[1745871626493,6.78,147.46,147.42,6.7814]
[1745871626882,6.78,147.46,147.43,6.7811]
[1745871628094,4.0976,147.47,147.45,6.7802]
[1745871628295,1.9668,147.47,147.45,6.7802]
[1745871629498,34.7143,147.48,147.4,14.59758394]
[1745871629994,34.7143,147.48,147.45,6.7798]
[1745871630793,27.9351,147.48,147.4,14.59758394]
[1745871631289,34.714,147.48,147.45,6.78]
[1745871632895,27.9351,147.48,147.46,6.7797]
[1745871633091,16.67638394,147.51,147.44,14.59758394]
[1745871633590,23.45408394,147.51,147.48,6.7788]
[1745871633793,27.906,147.52,147.44,14.59758394]
[1745871634088,25.92,147.52,147.46,14.59758394]
[1745871634291,25.92,147.55,147.48,14.59758394]
[1745871634495,25.92,147.55,147.48,40.51758394]
[1745871634693,25.92,147.58,147.54,6.776]
[1745871634892,25.92,147.58,147.5,14.59758394]
[1745871635193,14.59758394,147.57,147.49,4.0731]
[1745871635396,6.7757,147.55,147.51,6.7771]
[1745871635588,14.59758394,147.57,147.51,6.7771]
[1745871635785,6.7761,147.54,147.49,10.8511]
[1745871636495,6.7761,147.54,147.5,6.7778]
[1745871636989,6.7766,147.53,147.49,4.0731]
[1745871637597,6.777,147.52,147.48,32.6987]
[1745871637893,14.59758394,147.55,147.48,32.6987]
[1745871638198,6.7774,147.52,147.48,32.6987]
[1745871638495,25.92,147.54,147.48,32.6987]
[1745871638795,6.7774,147.52,147.48,32.6987]
[1745871639021,14.59758394,147.53,147.48,25.92]
[1745871639198,16.58188394,147.53,147.44,14.59758394]
[1745871639393,14.59758394,147.51,147.44,25.9]
[1745871639793,6.7784,147.49,147.44,25.9]
[1745871640103,14.59758394,147.51,147.44,25.9]
[1745871640396,21.37518394,147.51,147.46,6.7797]
[1745871640797,21.37518394,147.51,147.44,25.9]
[1745871641494,21.37518394,147.51,147.46,6.7797]
[1745871641697,21.37518394,147.51,147.44,25.9]
[1745871641895,6.7776,147.51,147.44,40.49758394]
[1745871642495,6.7776,147.51,147.47,6.779]
[1745871642999,6.7776,147.51,147.46,6.7796]
[1745871644498,6.7779,147.5,147.46,6.7796]
[1745871646498,6.7776,147.51,147.47,6.7793]
[1745871655307,6.7776,147.51,147.48,6.7788]
[1745871656107,8.7546,147.52,147.48,6.7788]
[1745871656911,6.7775,147.51,147.48,6.7788]
[1745871657438,1.9774,147.52,147.46,6.7797]
[1745871657710,21.37618394,147.49,147.42,25.88]
[1745871658509,6.7786,147.49,147.42,40.47758394]
[1745871659609,6.7786,147.49,147.45,6.7798]
[1745871660407,6.7786,147.49,147.46,6.7797]
[1745871661011,6.7786,147.49,147.45,6.78]
[1745871661213,25.88,147.5,147.42,40.47758394]
[1745871661411,14.59758394,147.49,147.42,25.88]
[1745871661613,6.7795,147.47,147.44,6.7805]
[1745871662116,25.88,147.5,147.42,40.47758394]
[1745871662310,32.6583,147.5,147.44,14.59758394]
[1745871662513,1.9774,147.52,147.44,14.59758394]
[1745871662916,6.7775,147.51,147.48,6.7784]
[1745871663214,1.9774,147.52,147.48,6.7784]
[1745871663714,8.7547,147.52,147.48,6.7784]
[1745871664214,6.7776,147.51,147.48,6.7784]
[1745871669719,25.88,147.53,147.46,40.47758394]
[1745871669925,40.47758394,147.56,147.48,14.59758394]
[1745871670424,6.7766,147.53,147.5,6.7777]
[1745871670722,40.47758394,147.56,147.48,14.59758394]
[1745871671320,14.59758394,147.54,147.46,42.53848394]
[1745871671723,6.7775,147.51,147.47,6.779]
[1745871672623,6.778,147.5,147.47,6.779]
[1745871673323,6.7777,147.51,147.48,6.7788]
[1745871674217,6.7779,147.5,147.47,6.7791]
[1745871675423,6.7776,147.51,147.47,6.7791]
[1745871675624,14.59758394,147.54,147.46,34.7204]
[1745871676123,6.7783,147.5,147.46,34.7204]
[1745871676425,14.59758394,147.52,147.46,25.88]
[1745871676633,6.7788,147.49,147.46,25.88]
[1745871677326,6.7788,147.49,147.46,32.6597]
[1745871683734,6.7788,147.49,147.46,25.88]
[1745871684437,6.7788,147.49,147.46,32.6594]
[1745871684936,6.7781,147.5,147.47,6.7792]
[1745871685336,6.7781,147.5,147.46,25.88]
[1745871685537,6.7781,147.5,147.46,32.6595]
[1745871686239,6.7781,147.5,147.47,6.7793]
[1745871686841,6.7781,147.5,147.46,32.6595]
[1745871687439,6.7781,147.5,147.47,6.7792]
[1745871689839,25.86,147.55,147.48,14.59758394]
[1745871690037,25.86,147.56,147.48,14.59758394]
[1745871690437,25.86,147.56,147.52,6.7768]
[1745871690644,25.86,147.56,147.5,14.59758394]
[1745871690941,25.86,147.56,147.53,6.7762]
[1745871691149,8.7496,147.57,147.53,6.7762]
[1745871691334,1.9746,147.57,147.52,14.59758394]
[1745871691538,6.7753,147.56,147.53,6.7764]
[1745871692742,8.7495,147.57,147.54,6.7761]
[1745871693042,1.9746,147.57,147.5,40.45758394]
[1745871693247,8.7494,147.57,147.54,6.7758]
[1745871693755,6.7742,147.58,147.55,6.7755]
[1745871694245,472.4785394,147.7,147.54,14.59758394]
[1745871694548,14.59758394,147.66,147.56,14.59758394]
[1745871694746,14.59758394,147.66,147.58,14.59758394]
[1745871694946,6.7718,147.64,147.59,6.7734]
[1745871695581,6.7713,147.65,147.6,6.7731]
[1745871695852,14.59758394,147.66,147.6,6.7731]
[1745871696154,6.7712,147.65,147.61,6.7728]
[1745871696852,6.7712,147.65,147.62,6.7722]
[1745871697150,6.7715,147.64,147.58,14.59758394]
[1745871698250,6.7715,147.64,147.61,6.7726]
[1745871698555,6.7712,147.65,147.58,14.59758394]
[1745871699152,6.7708,147.66,147.58,14.59758394]
[1745871699355,25.86,147.67,147.6,14.59758394]
[1745871699546,25.86,147.67,147.62,6.7724]
[1745871699751,6.7706,147.66,147.62,6.7724]
[1745871699950,25.86,147.67,147.62,6.7724]
[1745871700753,6.7711,147.65,147.61,6.7727]
[1745871703459,6.7716,147.64,147.6,6.7731]
[1745871704194,6.7716,147.64,147.61,6.7729]
[1745871705355,14.59758394,147.62,147.48,25.84]
[1745871705558,14.59758394,147.56,147.47,25.84]
[1745871705758,14.59758394,147.56,147.48,25.8]
[1745871706059,6.7764,147.54,147.49,6.7781]
[1745871706263,6.7764,147.54,147.48,40.39758394]
[1745871706662,40.39758394,147.58,147.48,25.8]
[1745871706959,14.59758394,147.56,147.48,25.8]
[1745871707151,14.59758394,147.58,147.49,14.59758394]
[1745871707351,6.776,147.55,147.49,14.59758394]
[1745871707664,6.776,147.55,147.51,6.7774]
[1745871708256,6.7754,147.56,147.52,6.7767]
[1745871708765,40.41758394,147.6,147.52,25.82]
[1745871708965,6.775,147.57,147.53,6.7762]
[1745871709766,6.775,147.57,147.52,25.82]
[1745871709966,6.7745,147.58,147.52,25.82]
[1745871710462,40.41758394,147.6,147.52,25.82]
[1745871710463,25.82,147.6,147.55,6.7756]
[1745871710659,6.774,147.59,147.55,6.7756]
[1745871711066,6.7743,147.58,147.55,6.7756]
[1745871711365,6.7743,147.58,147.54,6.7759]
[1745871714902,25.82,147.6,147.53,14.59758394]
[1745871714903,6.774,147.59,147.53,14.59758394]
[1745871715272,6.774,147.59,147.55,6.7754]
[1745871718870,6.774,147.59,147.56,6.7751]
[1745871720675,6.7735,147.6,147.56,6.7751]
[1745871720875,14.59758394,147.62,147.56,6.7751]
[1745871721175,6.7737,147.6,147.56,6.7751]
[1745871723177,6.7731,147.61,147.53,18.54058394]
[1745871723575,14.59758394,147.62,147.53,18.54058394]
[1745871723872,6.7734,147.6,147.57,6.7745]
[1745871724482,6.7738,147.59,147.57,6.7745]
[1745871724978,6.7738,147.59,147.56,6.7749]
[1745871728477,14.59758394,147.58,147.52,25.82]
[1745871729086,6.7754,147.56,147.53,6.7765]
[1745871729379,14.59758394,147.58,147.53,6.7765]
[1745871729678,6.7759,147.55,147.52,32.5968]
[1745871730181,6.7759,147.55,147.53,6.7764]
[1745871730376,6.7754,147.56,147.53,6.7764]
[1745871730576,25.82,147.59,147.52,40.41758394]
[1745871730975,6.7752,147.56,147.52,40.41758394]
[1745871731278,6.7752,147.56,147.53,6.7763]
[1745871734376,6.7757,147.55,147.52,32.5968]
[1745871735882,6.7753,147.56,147.53,6.7765]
[1745871736077,25.82,147.59,147.52,25.82]
[1745871736584,6.7756,147.56,147.52,32.5967]
[1745871736884,6.7756,147.56,147.52,25.82]
[1745871737983,6.7756,147.56,147.53,6.7763]
[1745871741785,6.7756,147.56,147.54,6.776]
[1745871742585,6.7749,147.57,147.54,6.776]
[1745871743188,6.775,147.57,147.54,6.776]
[1745871744510,40.37758394,147.6,147.54,6.776]
[1745871744511,6.7755,147.56,147.54,6.776]
[1745871749888,6.7755,147.56,147.53,6.7764]
[1745871755089,6.7757,147.55,147.53,6.7764]
[1745871757094,6.7754,147.56,147.53,6.7764]
[1745871762592,1.9455,147.58,147.51,40.37758394]
[1745871763190,25.78,147.6,147.53,14.59758394]
[1745871763592,42.45718394,147.63,147.56,6.7747]
[1745871763793,6.7739,147.59,147.56,6.7747]
[1745871764490,42.45718394,147.63,147.56,6.7747]
[1745871764694,6.7744,147.58,147.55,32.5554]
[1745871764897,6.7744,147.58,147.55,25.78]
[1745871765190,6.774,147.59,147.56,6.7751]
[1745871765895,6.7743,147.58,147.56,6.7751]
[1745871766998,6.774,147.59,147.57,6.7747]
[1745871769999,6.774,147.59,147.56,6.7749]
[1745871771699,6.774,147.59,147.57,6.7746]
[1745871773203,6.774,147.59,147.56,6.7749]
[1745871776006,6.774,147.59,147.57,6.7746]
[1745871778307,6.774,147.59,147.56,16.09636933]
[1745871778499,6.774,147.59,147.56,6.7749]
[1745871778803,16.09546933,147.59,147.56,6.7749]
[1745871779809,16.09546933,147.59,147.57,6.7747]
[1745871780004,16.09546933,147.59,147.55,35.10146933]
[1745871780204,6.7743,147.58,147.55,35.10146933]
[1745871780505,6.7743,147.58,147.56,6.7749]
[1745871781305,16.09546933,147.59,147.56,6.7749]
[1745871781607,16.09546933,147.59,147.57,6.7747]
[1745871782306,16.09546933,147.59,147.56,6.7749]
[1745871786906,16.09546933,147.59,147.57,6.7746]
[1745871791510,9.32146933,147.59,147.55,25.78]
[1745871791712,9.32146933,147.57,147.52,9.32146933]
[1745871791901,9.32146933,147.53,147.46,13.5588]
[1745871792107,9.32146933,147.52,147.49,25.76]
[1745871792609,9.32146933,147.51,147.49,32.5382]
[1745871793010,9.32146933,147.5,147.46,35.08146933]
[1745871793213,9.32146933,147.5,147.49,6.7784]
[1745871793509,21.36100249,147.53,147.49,6.7784]
[1745871794013,21.36100249,147.53,147.5,6.7778]
[1745871794708,21.36100249,147.53,147.51,6.7774]
[1745871795214,14.58410249,147.53,147.52,6.777]
[1745871795411,27.7818,147.56,147.5,14.58410249]
[1745871795712,25.76,147.56,147.5,40.34410249]
[1745871796048,25.76,147.59,147.52,14.58410249]
[1745871796311,32.534,147.59,147.56,6.7749]
[1745871796614,25.76,147.59,147.52,14.58410249]
[1745871797512,25.76,147.59,147.56,6.7749]
[1745871797712,32.534,147.59,147.56,6.7749]
[1745871798013,25.76,147.59,147.56,6.7749]
[1745871798230,6.7751,147.57,147.51,3.9376]
[1745871798712,6.7751,147.57,147.54,6.7757]
[1745871800206,6.7745,147.58,147.51,3.9376]
[1745871800515,25.76,147.59,147.51,3.9376]
[1745871800815,32.534,147.59,147.55,6.7753]
[1745871802216,32.534,147.59,147.56,6.7751]
[1745871802809,32.534,147.59,147.51,3.9376]
[1745871803013,32.534,147.59,147.55,6.7755]
[1745871803659,6.7743,147.58,147.55,6.7755]
[1745871804115,32.534,147.59,147.56,6.7751]
[1745871805910,25.76,147.59,147.56,6.7751]
[1745871806314,6.7735,147.6,147.56,6.7751]
[1745871807817,6.7738,147.59,147.56,6.7751]
[1745871808615,6.7738,147.59,147.55,6.7754]
[1745871808911,6.7743,147.58,147.55,6.7754]
[1745871809416,14.58410249,147.61,147.55,6.7754]
[1745871809711,6.774,147.59,147.55,6.7754]
[1745871810419,6.774,147.59,147.56,6.7751]
[1745871811519,27.8269,147.62,147.56,14.58410249]
[1745871812619,6.7729,147.61,147.58,6.7739]
[1745871813819,34.5995,147.62,147.58,6.7739]
[1745871814317,27.8269,147.62,147.58,6.7739]
[1745871814523,6.773,147.61,147.58,6.7739]
[1745871815373,6.773,147.61,147.57,6.7745]
[1745871816819,6.7733,147.6,147.57,6.7745]
[1745871819623,6.7733,147.6,147.58,6.7742]
[1745871819921,6.7731,147.61,147.58,6.7742]
[1745871821122,25.72,147.62,147.59,6.7737]
[1745871821323,1.984,147.64,147.58,14.58410249]
[1745871821624,27.8175,147.65,147.58,40.30410249]
[1745871821821,6.7722,147.63,147.6,6.7731]
[1745871822030,27.8175,147.65,147.6,6.7731]
[1745871822321,6.7718,147.64,147.6,14.58410249]
[1745871822719,6.7718,147.64,147.61,6.7728]
[1745871823225,32.4912,147.65,147.62,6.7724]
[1745871823522,25.72,147.65,147.6,14.58410249]
[1745871823862,6.7714,147.65,147.61,6.7727]
[1745871824415,27.6775,147.67,147.61,6.7727]
[1745871824624,6.7715,147.64,147.61,6.7727]
[1745871824825,27.6775,147.67,147.61,6.7727]
[1745871825525,6.7715,147.64,147.61,6.7727]
[1745871826925,42.26160249,147.67,147.6,6.7731]
[1745871827920,14.58410249,147.65,147.59,6.7735]
[1745871828119,14.58410249,147.61,147.5,489.6422]
[1745871828326,14.58410249,147.56,147.5,3.8732]
[1745871828521,6.776,147.55,147.52,6.777]
[1745871828819,14.58410249,147.56,147.5,3.8732]
[1745871829017,14.58410249,147.54,147.45,89.54924376]
[1745871829218,40.26410249,147.54,147.45,89.54924376]
[1745871829826,6.7779,147.51,147.47,6.7793]
[1745871830424,6.7779,147.51,147.45,104.13334625]
[1745871830725,6.7772,147.52,147.45,40.26410249]
[1745871831127,6.7772,147.52,147.47,6.7789]
[1745871831325,6.7772,147.52,147.45,40.26410249]
[1745871831631,6.7775,147.51,147.47,6.779]
[1745871834228,6.778,147.5,147.47,6.779]
[1745871834833,6.7777,147.51,147.47,6.779]
[1745871835832,6.7777,147.51,147.48,6.7788]
[1745871836735,40.26410249,147.54,147.45,40.26410249]
[1745871837034,6.7771,147.52,147.49,6.7781]
[1745871837835,6.7767,147.53,147.49,6.7781]
[1745871838831,40.26410249,147.54,147.49,6.7781]
[1745871839237,6.777,147.53,147.49,6.7781]
[1745871840036,1.9739,147.57,147.49,14.58410249]
[1745871840337,2.0755,147.61,147.55,14.58410249]
[1745871840537,2.0755,147.61,147.53,14.58410249]
[1745871840740,14.58410249,147.58,147.5,29.7783]
[1745871840943,14.58410249,147.56,147.49,40.28410249]
[1745871841335,14.58410249,147.56,147.49,25.7]
[1745871841688,6.7759,147.55,147.49,25.7]
[1745871842338,6.7759,147.55,147.52,6.7769]
[1745871847338,6.7762,147.54,147.51,6.7772]
[1745871847840,6.7766,147.53,147.5,6.7777]
[1745871850741,49.0224303,147.58,147.48,6.7785]
[1745871850940,49.0224303,147.58,147.46,49.0224303]
[1745871851275,6.7773,147.52,147.49,6.7781]
[1745871851436,25.7,147.54,147.49,6.7781]
[1745871851737,6.7772,147.52,147.49,6.7781]
[1745871851943,25.7,147.54,147.49,6.7781]
[1745871852140,27.6272,147.54,147.49,6.7781]
[1745871852340,6.7773,147.52,147.49,6.7781]
[1745871853042,6.7775,147.51,147.49,6.7781]
[1745871853234,27.6272,147.54,147.49,6.7781]
[1745871853437,31.7215,147.54,147.46,25.7]
[1745871853740,6.7782,147.5,147.46,25.7]
[1745871853940,6.7782,147.5,147.47,6.7791]
[1745871854543,6.7785,147.49,147.47,6.7791]
[1745871854937,6.7785,147.49,147.46,6.7795]
[1745871855744,6.7785,147.49,147.47,6.7792]
[1745871857844,6.7785,147.49,147.46,6.7795]
[1745871859743,6.7785,147.49,147.47,6.7793]
[1745871860040,6.7781,147.5,147.47,6.7793]
[1745871862646,6.7784,147.49,147.47,6.7793]
[1745871862842,31.7215,147.54,147.47,6.7793]
[1745871863345,6.7779,147.51,147.47,6.7793]
[1745871864539,6.778,147.5,147.47,6.7793]
[1745871864870,6.778,147.5,147.48,6.7788]
[1745871865849,6.7777,147.51,147.48,6.7788]
[1745871866251,6.7777,147.51,147.49,6.7783]
[1745871866650,6.7777,147.51,147.44,14.58418953]
[1745871867544,6.7777,147.51,147.48,6.7786]
[1745871867852,6.7777,147.51,147.44,14.58418953]
[1745871868051,6.7777,147.51,147.47,6.7791]
[1745871868653,6.778,147.5,147.47,6.7791]
[1745871871552,6.7777,147.51,147.48,6.7785]
[1745871871852,46.30568953,147.54,147.48,6.7785]
[1745871872047,6.7778,147.51,147.48,6.7785]
[1745871872552,6.7778,147.51,147.49,6.7784]
[1745871872854,6.7778,147.51,147.44,14.58418953]
[1745871873355,6.7778,147.51,147.48,6.7786]
[1745871877853,6.7778,147.51,147.49,6.7783]
[1745871880555,6.7779,147.5,147.44,14.58418953]
[1745871880756,14.58418953,147.52,147.44,14.58418953]
[1745871881256,6.7777,147.51,147.48,6.7788]
[1745871882052,6.7779,147.5,147.48,6.7788]
[1745871883054,6.7779,147.5,147.47,6.779]
[1745871884360,6.7784,147.49,147.47,6.779]
[1745871885274,6.7781,147.5,147.47,6.779]
[1745871885858,6.7781,147.5,147.48,6.7788]
[1745871886760,6.7784,147.49,147.47,6.7791]
[1745871887371,31.7215,147.54,147.43,25.7]
[1745871887372,40.24418953,147.5,147.43,25.7]
[1745871887558,25.66,147.49,147.41,18.78648953]
[1745871887759,27.6791,147.49,147.41,18.78648953]
[1745871887957,27.6791,147.49,147.42,6.7811]
[1745871888264,14.58418953,147.48,147.41,4.2023]
[1745871888858,14.58418953,147.48,147.41,10.9839]
[1745871889358,6.7808,147.44,147.41,10.9839]
[1745871889560,14.58418953,147.48,147.42,6.7815]
[1745871889761,27.6791,147.49,147.41,18.78648953]
[1745871890053,6.7799,147.46,147.41,18.78648953]
[1745871890257,6.7799,147.46,147.43,6.7809]
[1745871891960,6.7794,147.47,147.44,6.7806]
[1745871892161,27.6791,147.49,147.41,18.78648953]
[1745871892854,6.7801,147.46,147.41,18.78648953]
[1745871893060,6.7801,147.46,147.43,6.7811]
[1745871893359,27.6791,147.49,147.43,6.7811]
[1745871893958,6.78,147.46,147.43,6.7811]
[1745871894664,6.7803,147.45,147.43,6.7811]
[1745871895761,6.7803,147.45,147.42,6.7814]
[1745871895960,6.78,147.46,147.41,18.78648953]
[1745871896956,6.78,147.46,147.43,6.7811]
[1745871897958,27.6791,147.49,147.41,18.78648953]
[1745871898205,14.58418953,147.46,147.4,25.66]
[1745871898658,6.782,147.42,147.39,6.7828]
[1745871898963,25.64,147.45,147.37,40.22418953]
[1745871899162,6.7823,147.41,147.38,6.7831]
[1745871899962,6.7818,147.42,147.38,6.7831]
[1745871900466,6.7822,147.41,147.38,6.7831]
[1745871900863,25.64,147.45,147.39,6.7829]
[1745871901864,6.7816,147.42,147.39,6.7829]
[1745871903966,6.7813,147.43,147.4,6.7824]
[1745871904167,6.7813,147.43,147.37,40.22418953]
[1745871905870,6.7809,147.44,147.41,6.782]
[1745871908666,6.7809,147.44,147.42,6.7815]
[1745871910470,25.64,147.45,147.43,6.7809]
[1745871910680,25.64,147.45,147.39,14.58418953]
[1745871910883,44.44898953,147.48,147.39,14.58418953]
[1745871911104,25.64,147.48,147.41,14.58418953]
[1745871911381,25.64,147.48,147.41,40.22418953]
[1745871911680,6.7793,147.47,147.44,6.7802]
[1745871912280,6.7793,147.47,147.41,40.22418953]
[1745871913379,6.7793,147.47,147.43,6.7807]
[1745871913579,6.7793,147.47,147.41,40.22418953]
[1745871913779,32.419,147.48,147.43,14.58418953]
[1745871913986,32.419,147.48,147.45,6.78]
[1745871916380,25.64,147.48,147.45,6.78]
[1745871916588,6.7793,147.47,147.44,6.7806]
[1745871920591,6.7793,147.47,147.45,6.7802]
[1745871920891,32.4191,147.48,147.45,6.7802]
[1745871921090,25.6,147.51,147.46,6.7795]
[1745871922087,6.7783,147.5,147.47,6.7793]
[1745871922392,25.6,147.51,147.45,40.18418953]
[1745871923091,6.7784,147.49,147.46,6.7794]
[1745871924007,6.7784,147.49,147.47,6.7792]
[1745871924993,6.7781,147.5,147.47,6.7792]
[1745871928792,6.7781,147.5,147.48,6.7788]
[1745871928991,6.7781,147.5,147.45,40.18418953]
[1745871929493,6.7777,147.51,147.45,40.18418953]
[1745871929990,6.7772,147.52,147.47,14.58418953]
[1745871930423,40.18418953,147.55,147.47,14.58418953]
[1745871930695,40.18418953,147.55,147.48,6.7784]
[1745871931394,6.7775,147.51,147.48,6.7784]
[1745871931597,40.18418953,147.55,147.47,21.36328953]
[1745871931896,6.7782,147.5,147.47,21.36328953]
[1745871932097,6.7782,147.5,147.47,6.7791]
[1745871934747,6.7785,147.49,147.47,6.7791]
[1745871935499,14.58418953,147.53,147.45,25.6]
[1745871935700,14.58418953,147.51,147.42,44.34558953]
[1745871935900,2.0652,147.5,147.42,44.34558953]
[1745871936103,6.78,147.46,147.42,44.34558953]
[1745871936400,14.58418953,147.49,147.42,25.6]
[1745871936602,6.781,147.44,147.41,6.7818]
[1745871937602,6.7814,147.43,147.4,6.7824]
[1745871938502,6.7809,147.44,147.41,6.7819]
[1745871939403,6.7804,147.45,147.42,6.7816]
[1745871939704,40.18418953,147.47,147.39,25.6]
[1745871940503,6.7805,147.45,147.42,6.7815]
[1745871944605,6.7805,147.45,147.43,6.7811]
[1745871945008,6.78,147.46,147.43,6.7811]
[1745871945805,6.7803,147.45,147.42,6.7814]
[1745871947404,6.7803,147.45,147.43,6.7811]
[1745871948005,6.78,147.46,147.43,6.7811]
[1745871949000,6.7802,147.45,147.43,6.7811]
[1745871949404,25.6,147.47,147.44,6.7806]
[1745871950307,6.7799,147.46,147.44,6.7806]
[1745871952506,6.7799,147.46,147.39,25.6]
[1745871952507,40.18418953,147.47,147.38,14.58418953]
[1745871952708,40.18418953,147.47,147.39,25.58]
[1745871953105,6.7807,147.44,147.41,6.7817]
[1745871953306,6.7807,147.44,147.39,25.58]
[1745871954310,14.58418953,147.45,147.37,18.65818953]
[1745871955041,6.7814,147.43,147.4,6.7824]
[1745871955210,2.1012,147.46,147.39,14.58418953]